Cogmind - Beta 15 @@@ ROGUE MODE // 2025.06.04 @ 13:03:06 Player: Fleshy Vegetable Bird Result: Destroyed by IQ-Q1B(R) with Subdweller Machine Gun Performance ------------- Evolutions (0) 0 Regions Visited (2) 400 Robots Destroyed (27) 135 Value Destroyed (321) 321 Prototype IDs (0) 0 Alien Tech Used (0) 0 Bonus (0) 0 TOTAL SCORE: 856 Bonus ------- None Cogmind --------- Core Integrity 0/250 Matter 212/300 Energy 156/250 System Corruption 1% Temperature Cool (0) Movement Rolling (140) Ox4 Location -10/Subcaves Parts ------- > --- POWER (1) -------- Ion Engine > --- PROPULSION (2) --- Wheel Wheel > --- UTILITY (2) ------ Huge Storage Unit Improved Targeting Computer > --- WEAPON (2) ------- EMP Blaster EMP Blaster > --- INVENTORY (25) --- Improved Treads Improved Treads Improved Treads Improved Treads Wheel Wheel Large Storage Unit High-capacity Matter Pod (0) Structural Scanner Improved Terrain Scanner Terrain Scan Processor Seismic Detector Improved Targeting Computer Scrap Shield Spread Laser Spread Laser Spread Laser Beam Cannon Subdweller Beam Cannon Assault Rifle Subdweller Machine Gun Light Cannon Mining Laser Plasma Cutter Peak State ------------ > --- POWER ------------ Ion Engine > --- PROPULSION ------- Wheel Wheel > --- UTILITY ---------- Huge Storage Unit Improved Targeting Computer > --- WEAPON ----------- EMP Blaster EMP Blaster > --- INVENTORY -------- Improved Treads Improved Treads Improved Treads Improved Treads Wheel Wheel Large Storage Unit High-capacity Matter Pod Structural Scanner Improved Terrain Scanner Terrain Scan Processor Seismic Detector Improved Targeting Computer Scrap Shield Spread Laser Spread Laser Spread Laser Beam Cannon Subdweller Beam Cannon Assault Rifle Subdweller Machine Gun Light Cannon Mining Laser Plasma Cutter [Rating: 14] Favorites ----------- Power Ion Engine Engine Ion Engine Propulsion Wheel Wheel Wheel Utility Seismic Detector Device Seismic Detector Storage Huge Storage Unit Processor Improved Targeting Computer Weapon Assault Rifle Energy Gun Medium Laser Energy Cannon Beam Cannon Ballistic Gun Assault Rifle Launcher EMP Blaster Special Weapon Mining Laser Build | -11 -10 -10 ------- Run | Yrd Mat Sub Slots Evolved . | . . . Power . | . . . Propulsion . | . . . Utility . | . . . Weapon . | . . . Parts Attached 26 | 8 12 6 Power 2 | 1 1 . Engine 2 | 1 1 . Core . | . . . Reactor . | . . . Propulsion 7 | 3 3 1 Treads . | . . . Leg . | . . . Wheel 7 | 3 3 1 Hover . | . . . Flight . | . . . Utility 7 | 2 4 1 Device 3 | 1 2 . Storage 3 | 1 2 . Processor 1 | . . 1 Hackware . | . . . Protection . | . . . Artifact . | . . . Weapon 10 | 2 4 4 Energy Gun 1 | 1 . . Energy Cannon 1 | . 1 . Ballistic Gun 4 | 1 2 1 Ballistic Cannon . | . . . Launcher 3 | . . 3 Special Weapon 1 | . 1 . Impact Weapon . | . . . Slashing Weapon . | . . . Piercing Weapon . | . . . Special Melee Weapon . | . . . Unidentified Prototypes . | . . . Parts Lost 1 | . 1 . Power 1 | . 1 . Propulsion . | . . . Utility . | . . . Weapon . | . . . Highest Loss Streak 1 | . 1 . To Critical Strikes . | . . . Average Backups 16 | 3 16 24 Power . | . . . Propulsion 5 | 1 5 6 Utility 4 | . 4 7 Weapon 6 | 1 6 9 Tool/Special . | . . . Unused Backups 25 | 1 3 21 Power . | . . . Propulsion 8 | 1 1 6 Utility 7 | . . 7 Weapon 8 | . 1 7 Tool/Special 2 | . 1 1 Average Slot Usage (%) 99 | . 99 100 Engine 13 | . 13 14 Wheel 28 | . 28 28 Device 11 | . 14 1 Storage 14 | . 14 14 Processor 2 | . . 12 Energy Gun 4 | . 5 . Energy Cannon 7 | . 8 4 Ballistic Gun 12 | . 12 10 Launcher 2 | . . 13 Special Weapon 1 | . 1 . Peak Build Rating 14 | 8 11 14 Average Rating 9 | 6 9 12 On Entrance 6 | . 8 11 Naked Turns . | . . . Heaviest Build 93 | 13 91 93 Greatest Support 20 | 20 20 20 Greatest Overweight (x) 9 | . 4 9 Average Overweight (x) 2 | . 2 4 Largest Inventory Capacity 25 | 8 25 25 Average Capacity 20 | 7 20 25 Most Carried 25 | 8 25 25 Average Carried 16 | 3 16 24 Final Capacity 25 | 8 25 25 Final Carried 25 | 8 25 25 Class Distribution -------------------- 100% | Mutant Dominant Class ---------------- Mutant | -10/Materials Mutant | -10/Subcaves Resources | -11 -10 -10 ----------- Run | Yrd Mat Sub Matter Collected 619 | 301 201 117 Remotely . | . . . Salvage Created 749 | 235 374 140 Parts 67 | 26 30 11 Haulers Intercepted 2 | . 2 . Recyclers Shooed . | . . . Parts Field Recycled . | . . . Retrieved Matter . | . . . Parts Self-Destructed 3 | . . 3 Prevented . | . . . Kills | -11 -10 -10 ------- Run | Yrd Mat Sub Combat Hostiles Destroyed 10 | . 7 3 Guns 7 | . 7 . AOE 2 | . . 2 Classes Destroyed 9 | 3 5 1 Worker 4 | 2 2 . Builder 2 | . 2 . Tunneler 5 | 5 . . Hauler 2 | . 2 . Recycler 1 | 1 . . Watcher 3 | . 3 . Swarmer 6 | . 6 . Grunt 1 | . 1 . Subdweller 3 | . . 3 Best Kill Streak 6 | 6 4 3 Combat Bots Only 3 | . 3 3 Max Kills in Single Turn 2 | 2 1 1 Gunslinging . | . . . Exploded 1 | . . 1 Melee . | . . . Uniques/NPCs Destroyed . | . . . Combat | -11 -10 -10 -------- Run | Yrd Mat Sub Hostile Shots Fired 87 | . 71 16 Missed 26 | . 22 4 Hits 61 | . 49 12 Projectile 61 | . 49 12 Critical Strikes 2 | . 1 1 Damage Taken 746 | . 446 300 Core 274 | . 116 158 Absorbed by Shields . | . . . Core Remaining (%) 100 | 100 . . Volleys Fired 73 | 7 56 10 Largest 2 | 2 2 2 Hottest 100 | 70 100 66 Shots Fired 127 | 14 102 11 Gun 104 | 14 90 . Cannon 9 | . 9 . Launcher 11 | . . 11 Special 3 | . 3 . Kinetic 53 | 7 46 . Thermal 63 | 7 56 . Explosive . | . . . Electromagnetic 11 | . . 11 Robot Hit Streak 18 | 4 18 3 Robot Miss Streak 4 | 1 4 3 Penetration Max . | . . . Secondary Targets 1 | . 1 . Max Gunslinging Chain 1 | . 1 . Shots Hit Robots 63 | 8 54 1 Core Hits 33 | 9 19 5 Critical Kills . | . . . Critical Parts Destroyed . | . . . Critical Strikes 1 | 1 . . Burn 1 | 1 . . Melee Attacks . | . . . Impact . | . . . Slashing . | . . . Piercing . | . . . Sneak Attacks . | . . . Combat Hostiles . | . . . Follow-up Attacks . | . . . Damage Inflicted 1231 | 114 800 317 Guns 768 | 114 654 . Cannons 122 | . 122 . Explosions 317 | . . 317 Melee . | . . . Ramming . | . . . Kinetic 356 | 38 318 . Thermal 558 | 76 482 . Explosive . | . . . Electromagnetic 317 | . . 317 Impact . | . . . Slashing . | . . . Piercing . | . . . Highest Corruption 1 | . 1 1 Average Corruption 1 | . 1 1 Corruption Purged . | . . . Corruption Blocked . | . . . Effects 8 | . 5 3 Message Errors 1 | . . 1 Matter Fused 2 | . 2 . Heat Flow Errors 2 | . 1 1 Data Loss (minor) 2 | . 2 . Alerts 1 | . . 1 Overload Shots . | . . . Overflow Damage . | . . . Projectiles . | . . . Explosions . | . . . Melee . | . . . Knockbacks . | . . . Impact . | . . . Kinetic . | . . . Secondary . | . . . Self-Inflicted Damage . | . . . Shots . | . . . Rammed . | . . . Targets Rammed . | . . . Kicked . | . . . Crushed . | . . . Highest Temperature 275 | 18 240 275 Average Temperature 40 | 9 36 137 Received Heat Transfer 404 | . 60 344 Effects 1 | . . 1 Energy Bleed 1 | . . 1 Siege Activations . | . . . Martial Activations . | . . . Shielding Activations . | . . . Robots Disrupted . | . . . Combat Hostiles . | . . . Robots Corrupted 1 | . . 1 Combat Hostiles 1 | . . 1 Parts Fried 1 | . . 1 Impact Corruptions . | . . . Robots Melted . | . . . Combat Hostiles . | . . . Parts Melted 3 | 1 2 . Heat Transferred 1604 | 296 1308 . Parts Sabotaged . | . . . Parts Stolen . | . . . Parts Stripped . | . . . Power Chain Reactions 1 | . . 1 Alert | -11 -10 -10 ------- Run | Yrd Mat Sub Maximum Alert Level . | . . . Low Security (%) 100 | 100 100 . Level 1 . | . . . Level 2 . | . . . Level 3 . | . . . Level 4 . | . . . Level 5 . | . . . High Security . | . . . Max Security . | . . . Peak Influence 75 | 10 75 . Initial 6 | . 6 . Average 10 | 5 11 . Influence Increases 300 | 40 260 . Destroy 0b10 Robot/C 140 | . 140 . Destroy 0b10 Robot/NC 85 | 40 45 . Destroy Leader 30 | . 30 . Successful Hack 11 | . 11 . Destroy Structure 4 | . 4 . Lose Combat Pursuer 30 | . 30 . Influence Decreases 300 | 30 240 30 Entered New Map 19 | . 4 15 Time Decay 270 | 30 225 15 Lost Part 10 | . 10 . Purge Threat 1 | . 1 . Squads Dispatched . | . . . Investigation . | . . . Extermination . | . . . Reinforcement . | . . . Assault . | . . . Garrison . | . . . Intercept . | . . . Searches Triggered . | . . . Construction Impeded . | . . . Haulers Reinforced . | . . . Active Scanning Responses . | . . . Cargo Convoy Interrupts . | . . . Stealth | -11 -10 -10 --------- Run | Yrd Mat Sub Distress Signals 1 | . 1 . Communications Jammed . | . . . Distress Signals . | . . . Times Spotted 25 | . 19 6 Peak Tracking Total 4 | . 4 3 Tactical Retreats 2 | . 1 1 Traps | -11 -10 -10 ------- Run | Yrd Mat Sub Traps Triggered 1 | . 1 . Indirectly . | . . . Trap Hack Attempts . | . . . Triggered . | . . . Disarmed . | . . . Reprogrammed . | . . . Reused . | . . . Traps Extracted . | . . . Installed . | . . . Triggered . | . . . Machines | -11 -10 -10 ---------- Run | Yrd Mat Sub Machines Disabled . | . . . Max in Single Turn . | . . . Machines Repaired . | . . . Machines Dismantled . | . . . Machines Sabotaged . | . . . Overloaded Fab Kills . | . . . Hacking | -11 -10 -10 --------- Run | Yrd Mat Sub Machines Accessed 7 | . 7 . Terminals 7 | . 7 . Fabricators . | . . . Repair Stations . | . . . Recycling Units . | . . . Scanalyzers . | . . . Garrison Access . | . . . Total Hacks 20 | . 20 . Successful 13 | . 13 . Failed 7 | . 7 . Catastrophic 1 | . 1 . Database Lockouts . | . . . Manual 19 | . 19 . Terminals 20 | . 20 . Fabricators . | . . . Repair Stations . | . . . Recycling Units . | . . . Scanalyzers . | . . . Garrison Access . | . . . Terminal Hacks 5 | . 5 . Robot Analysis 1 | . 1 . Terminal Index 1 | . 1 . Unreport Threat 1 | . 1 . Locate Traps 1 | . 1 . Dispatch Records 1 | . 1 . Fabricator Hacks . | . . . Repair Station Hacks . | . . . Recycling Unit Hacks . | . . . Scanalyzer . | . . . Garrison Access Hacks . | . . . Unauthorized Hacks 8 | . 8 . Terminals 8 | . 8 . Track 2 | . 2 . Botnet 6 | . 6 . Fabricators . | . . . Repair Stations . | . . . Recycling Units . | . . . Scanalyzers . | . . . Garrison Access . | . . . Data Cores Recovered . | . . . Used . | . . . Hacking Detections 7 | . 7 . Full Trace Events . | . . . Feedback Events . | . . . Feedback Blocked . | . . . Robot Schematics Acquired . | . . . Robots Built . | . . . Authchips . | . . . Time . | . . . Total Robot Build Rating . | . . . Part Schematics Acquired . | . . . Parts Built . | . . . Authchips . | . . . Time . | . . . Total Part Build Rating . | . . . Parts Repaired . | . . . Time . | . . . Parts Recycled . | . . . Recycled Matter . | . . . Retrieved Matter . | . . . Retrieved Components . | . . . Parts Scanalyzed . | . . . Part Schematics Acquired . | . . . Parts Damaged . | . . . Bothacking | -11 -10 -10 ------------ Run | Yrd Mat Sub Used RIF Installer . | . . . Robots Hacked . | . . . Non-combat . | . . . Combat . | . . . Robot Hacks Applied . | . . . Relay Couplers Released . | . . . Fabnet Peak Effective % . | . . . Robots Rewired . | . . . Allies Hacked . | . . . Hacks Repelled . | . . . Allies | -11 -10 -10 -------- Run | Yrd Mat Sub Total Allies . | . . . Largest Group . | . . . Highest-Rated Group . | . . . Highest-Rated Ally . | . . . Total Orders . | . . . Ally Attacks . | . . . Total Damage . | . . . Kills . | . . . Allies Corrupted . | . . . Allies Melted . | . . . Intel | -11 -10 -10 ------- Run | Yrd Mat Sub Active Infowar (turns) 1084 | 68 1007 9 Seismic 1084 | 68 1007 9 Robot Analysis Total 1 | . 1 . Derelict Logs Recovered . | . . . Drone Launches . | . . . Drone Recoveries . | . . . Exploration | -11 -10 -10 ------------- Run | Yrd Mat Sub Turns Passed 1321 | 113 1013 195 Spaces Moved 793 | 76 609 108 Core 4 | 4 . . Treads . | . . . Legs . | . . . Wheels 789 | 72 609 108 Hover . | . . . Flight . | . . . Fastest Speed 50 | 50 80 140 Average Speed 120 | 82 121 141 Slowest Speed 215 | 100 140 215 Overloaded Moves . | . . . Propulsion Burnouts . | . . . Robots Hopped . | . . . Potential Cave-ins . | . . . Cave-ins Triggered . | . . . Exploration Rate (%) 35 | 4 90 13 Regions Visited 2 Branch Regions 1 Pre-discovered Areas . | . . . Known Exits Taken . | . . . Unknown Exits Taken 2 | 1 1 . Scrap Searched . | . . . Spaces Dug 2 | . 2 . Terrain Destroyed 3 | . 2 1 Melee . | . . . Projectile 2 | . 2 . AOE 1 | . . 1 Terrain Rammed . | . . . Walls Destroyed . | . . . Machines Disabled . | . . . Actions | -11 -10 -10 --------- Run | Yrd Mat Sub Total 1033 | 116 779 138 Wait 61 | . 57 4 Move 791 | 75 608 108 Hop . | . . . Pick Up 53 | 20 30 3 Fast Attach 2 | 1 . 1 Attach 7 | 6 1 . Detach . | . . . Swap 20 | 1 12 7 Drop 26 | 6 15 5 Fire 73 | 7 56 10 Melee . | . . . Ram . | . . . Kick . | . . . Crush . | . . . Escape Stasis . | . . . Rewire . | . . . Trap . | . . . Miscellaneous . | . . . Route ------- -11/Scrapyard -10/Materials (discovered 6 exits: [*Mat x3] / [*Min x2] / [*Sub]) -10/Subcaves History --------- Turn | Location | Event 21 | -11/Scrapyard | Discovered new exit (range 16) 114 | -11/Scrapyard | Entered Materials 207 | -10/Materials | Discovered new exit (range 12) 301 | -10/Materials | Build established: Mutant 468 | -10/Materials | Discovered new exit (range 15) 634 | -10/Materials | Discovered new exit (range 15) 917 | -10/Materials | Discovered new exit (range 13) 1073 | -10/Materials | Discovered new exit (range 14) 1112 | -10/Materials | Discovered new exit (range 12) 1127 | -10/Materials | Entered Subcaves 1157 | -10/Subcaves | A Subdweller sparked back to life 1157 | -10/Subcaves | A Subdweller sparked back to life 1169 | -10/Subcaves | Core integrity fell below 50% 1171 | -10/Subcaves | Core integrity fell below 20% 1322 | -10/Subcaves | Destroyed by IQ-Q1B(R) with Subdweller Machine Gun Last Messages --------------- 01202_ Subatomizers dissect the Corrupted Sub. Machine Gun. 01205_ Dropped Wheel. 01205_ Acquired Corrupted Sub. Beam Cannon. 01215_ Dropped Assault Rifle. 01217_ Dropped EMP Blaster. 01217_ Acquired Scrap Shield. 01218_ Acquired 46 matter. 01222_ Dropped Spread Laser. 01223_ Acquired Corrupted Sub. Machine Gun. 01227_ Subatomizers dissect the Corrupted Disposable Heat Sink. 01243_ Acquired 9 matter. 01252_ Subatomizers dissect the EMP Blaster. 01255_ Acquired 10 matter. 01258_ System corrupted: IFF burst signal emitted. 01261_ 4A-455(O) collects matter. 01288_ Acquired 6 matter. 01294_ System corrupted: Heat flow error (+218). Map ----- +----------------------------------------------------+ | ?????????????????????##### #?## #???????? | | ?????????????????????????## ## ##???????? | | ??????????????????????????## ##????????? | | ???????????????????????????## #?????????? | | ????????????????????????????# ##?????????? | | ???????????????????????????##% ##?????????? | | ???????????????????????????# #?????????? | | ???????????????????????????# % #??#??????? | | ?????????????????? ? ?????## ## #??????? | | ?????????????????? #?????## #??????? | | ???????????????????# ###?### ##??????? | | ??????????????????## ## #???????? | | ??????????????????# ### #?? | | ???????????????????# % ##?? ? | | ????????????????????# % % ###?# | | ????????????????????# ### ##? ## ? | | ????????????????????# #?# #?? # #?? | | ????????????????????? ### R #?? ? | | ??????????????????????? ### ###??? ? ? | | ????????????????????????# ### ##???????##??? | | ????????????????????????# ###??????????? | | ????????????????????????# % ##?????????? | | ????????????????????????# #?????????? | | ????????????????????????# ###?????????? | | ????????????????????????# %% ##???????????? | | ???????????????????????##@ #????????????? | | ???????????????????????# % #????????????? | | ???????????????????????# #???????????? | | ???????????????????????# ### #????????? | | ?????????????????? % #?? % #????????? | | ?????????????? # ## # ##?? #???????? | | ?????????????????????# ## #??? """ #???????? | | ?????????????????????# ?# ##??? """" #???????? | | ?????????????????????# ? ???? ###"""??????????? | | ?????????????????????#? ?????#??#"???????????? | | ???????????????????????# ?????????????????????? | | ???????????????????????## ?????????????????????? | | ????????????????????????## ?????????????????????? | | ?????????????????????????#RR ????????????????????? | | ????????????????????????? ????????????????????? | | ????????????????????????? ?????????????????????? | | ?????????????????????????# ?????????????????????? | | ?????????????????????????? ?????????????????????? | | ?????????????????????????? ?????????????????????? | | ?????????????????????????????????????????????????? | | ?????????????????????????????????????????????????? | | ?????????????????????????????????????????????????? | | ?????????????????????????????????????????????????? | | ?????????????????????????????????????????????????? | | ?????????????????????????????????????????????????? | +----------------------------------------------------+ Best States ------------- Heat Dissipation 25 Energy Generation 10 Energy Capacity 250 Matter Stores 300 Matter Capacity 300 Sight Range 16 Terrain Scan Density 10 Evasion (%) 44 Targeting Accuracy 6 Item Schematics ----------------- None Robot Schematics ------------------ None Fabricated ------------ Nothing Repaired ---------- Nothing Alien Tech Used ----------------- None Achievements -------------- None Challenges ------------ None Game ------ Seed AluminumConceptRipteeth Manual? 0 Play Time 00:18:41 Cumulative 358.8 hours Start 2025.06.04 @ 10:03:24 End 2025.06.04 @ 13:03:06 Sessions 1 Manual Loads 0 Difficulty Rogue Special Mode None Game No. 401 Rogue 401 Adventurer 0 Explorer 0 Win Type - Total 6 Types 3/1/1/1/0/0/0/0/0/0 Lore% 61 Gallery% 69 Achievement% 68 Wizard Run 0 Options --------- Layout 1 ASCII 0 Keyboard 0 Movement Numpad Keybinds 0 Fullscreen 1 Font 32/SmallcapsGlow Map View 50x35 Zoom Use 0% Tactical HUD 1 Map Filters NONE Filters NONE Steam 1 RUN: 4923e4f5-869a-4bea-93c8-9608ba554bc8